bitfinex/quotes_BTCUSD_20230118
["timestamp","ask_amount","ask_price","bid_price","bid_amount"]
[1674057870195,0.42566758,20896.0,20889.0,0.549844]
[1674057870458,0.42566758,20896.0,20889.0,0.778699]
[1674057870733,0.42566758,20896.0,20890.0,0.399829]
[1674057870992,0.42566758,20896.0,20891.0,0.3]
[1674057871545,0.30612806,20896.0,20892.0,1.685723]
[1674057871548,0.0001,20900.0,20894.0,0.1155]
[1674057871834,0.0001,20900.0,20898.0,0.1144]
[1674057872108,0.0001,20900.0,20899.0,1.685179]
[1674057872366,0.00352742,20907.0,20899.0,1.670631]
[1674057872638,0.00352742,20907.0,20900.0,0.685233]
[1674057872639,6e-05,20905.0,20900.0,0.685233]
[1674057872899,6e-05,20905.0,20900.0,0.4501]
[1674057873158,6e-05,20905.0,20901.0,0.385122]
[1674057873429,0.04708905,20905.0,20901.0,0.15]
[1674057873715,0.36509805,20904.0,20894.0,0.94121794]
[1674057873993,0.44687621,20903.0,20893.0,3.26094341]
[1674057874252,0.44687621,20903.0,20896.0,0.15]
[1674057874253,0.97208007,20903.0,20896.0,0.15]
[1674057874542,0.97208007,20903.0,20893.0,2.78231641]
[1674057874543,0.97257438,20903.0,20893.0,2.78231641]
[1674057874799,0.92511965,20903.0,20893.0,2.78231641]
[1674057875069,0.59670465,20905.0,20896.0,0.1151]
[1674057875338,0.00352742,20907.0,20898.0,0.956996]
[1674057875603,0.00352742,20907.0,20899.0,0.235151]
[1674057876146,0.00352742,20907.0,20899.0,0.3]
[1674057876150,0.00352742,20907.0,20900.0,0.478458]
[1674057876407,0.00352742,20907.0,20902.0,0.1155]
[1674057876686,0.00352742,20907.0,20905.0,0.1155]
[1674057877213,0.07270742,20907.0,20906.0,0.235055]
[1674057877491,0.47010999,20905.0,20904.0,0.1845]
[1674057878294,0.47010999,20905.0,20904.0,0.662877]
[1674057878297,0.58212582,20914.0,20904.0,0.662877]
[1674057878581,0.41184692,20915.0,20913.0,0.1155]
[1674057878852,0.12068,20921.0,20910.0,0.1151]
[1674057879114,0.12068,20921.0,20910.0,0.478227]
[1674057879387,0.00352742,20913.0,20911.0,0.3]
[1674057879647,0.00352742,20913.0,20911.0,0.778197]
[1674057880700,0.00352742,20913.0,20911.0,1.378197]
[1674057880962,0.00352742,20913.0,20912.0,0.15]
[1674057881241,0.00352742,20913.0,20910.0,0.3]
[1674057881502,0.00352742,20913.0,20911.0,0.478211]
[1674057881762,0.00352742,20913.0,20909.0,0.47824]
[1674057882069,0.00352742,20913.0,20907.0,0.15]
[1674057882621,0.00325671,20913.0,20907.0,0.15]
[1674057883153,0.00325671,20913.0,20903.0,0.628391]
[1674057883429,0.00325671,20913.0,20903.0,0.478391]
[1674057883698,0.00325671,20913.0,20904.0,0.478359]
[1674057883989,0.00325671,20913.0,20904.0,0.628359]
[1674057884265,0.00325671,20913.0,20906.0,0.1155]
[1674057884522,0.00325671,20913.0,20908.0,0.478283]
[1674057885029,0.00325671,20913.0,20908.0,0.628283]
[1674057885286,0.00325671,20913.0,20909.0,0.3]
[1674057885562,0.00325671,20913.0,20910.0,1.10647]
[1674057885824,0.00325671,20913.0,20910.0,1.22157]
[1674057886092,0.00325671,20913.0,20911.0,0.3]
[1674057886360,0.2694,20915.0,20912.0,0.956388]
[1674057886657,0.2694,20915.0,20914.0,0.1151]
[1674057886918,0.2694,20915.0,20914.0,1.071396]
[1674057887189,0.2694,20915.0,20914.0,1.371396]
[1674057888025,0.2694,20915.0,20914.0,1.24209397]
[1674057888292,0.00013,20920.0,20914.0,1.24209397]
[1674057888569,0.00013,20920.0,20914.0,1.21079249]
[1674057888840,0.00013,20920.0,20912.0,0.478194]
[1674057889103,0.00013,20920.0,20911.0,0.478213]
[1674057889389,0.00013,20920.0,20912.0,0.62819]
[1674057889650,0.4490041,20921.0,20913.0,0.15]
[1674057889911,1.2436038,20922.0,20914.0,0.478147]
[1674057890164,0.7945997,20922.0,20913.0,0.956321]
[1674057890439,0.7895997,20922.0,20914.0,0.478126]
[1674057890698,0.7895997,20922.0,20913.0,0.47815]
[1674057890953,0.7895997,20922.0,20914.0,0.3]
[1674057891212,1.7165848,20922.0,20914.0,0.3]
[1674057891529,0.15,20921.0,20912.0,0.618175]
[1674057891794,0.47805,20919.0,20909.0,0.628242]
[1674057892065,0.9270541,20919.0,20913.0,0.045]
[1674057892344,0.47805,20919.0,20913.0,0.045]
[1674057892650,0.47805,20919.0,20907.0,0.628288]
[1674057892651,0.09,20912.0,20905.0,0.15]
[1674057892974,0.90498556,20911.0,20904.0,0.628354]
[1674057893225,0.58221356,20911.0,20904.0,0.628354]
[1674057893504,0.135,20911.0,20904.0,0.628354]
[1674057893759,0.135,20911.0,20903.0,0.628389]
[1674057893760,0.58221356,20911.0,20903.0,0.15]
[1674057894020,0.58221356,20911.0,20899.0,0.478488]
[1674057894021,0.76592956,20910.0,20899.0,0.478488]
[1674057894284,0.478287,20908.0,20899.0,0.478488]
[1674057894548,0.92648156,20907.0,20898.0,0.478499]
[1674057894803,0.478305,20908.0,20898.0,0.478499]
[1674057894804,0.76692256,20906.0,20903.0,0.004]
[1674057895075,1.3589,20910.0,20902.0,0.47842]
[1674057895345,0.00807,20908.0,20903.0,0.478388]
[1674057895608,7e-05,20908.0,20903.0,0.478388]
[1674057895901,0.008,20906.0,20903.0,0.596788]
[1674057896175,7e-05,20908.0,20904.0,0.3]
[1674057896432,7e-05,20908.0,20905.0,0.956698]
[1674057896706,7e-05,20908.0,20906.0,0.3]
[1674057896974,7e-05,20908.0,20907.0,0.478308]
[1674057897258,0.008,20908.0,20907.0,0.3]
[1674057897524,0.13,20911.0,20907.0,0.928308]
[1674057897791,0.13,20911.0,20909.0,0.1151]
[1674057898276,0.13,20911.0,20910.0,0.95648]
[1674057898548,0.13,20911.0,20910.0,0.3]
[1674057898809,0.45313196,20909.0,20908.0,0.778276]
[1674057899086,0.45313196,20909.0,20907.0,0.956607]
[1674057899348,0.45313196,20909.0,20908.0,0.15]
[1674057899611,0.45313196,20909.0,20907.0,1.434911]
[1674057899872,0.44813196,20909.0,20907.0,1.434911]
[1674057900147,0.44813196,20909.0,20906.0,0.15]
[1674057900425,0.44813196,20909.0,20901.0,0.47843]
[1674057900426,0.15,20908.0,20901.0,0.47843]
[1674057900902,0.76440358,20907.0,20901.0,0.15]
[1674057900905,0.44797558,20907.0,20901.0,0.15]
[1674057901192,0.478342,20906.0,20901.0,0.15]
[1674057901475,0.469977,20905.0,20897.0,0.64911449]
[1674057901732,0.44797558,20907.0,20901.0,0.556436]
[1674057901988,0.001,20908.0,20899.0,0.478477]
[1674057901989,1.04036662,20908.0,20899.0,0.478477]
[1674057902248,0.001,20906.0,20901.0,0.556437]
[1674057902792,0.44225847,20907.0,20900.0,0.478459]
[1674057903055,0.44225847,20907.0,20897.0,0.17058149]
[1674057903056,1.292995,20906.0,20897.0,0.17058149]
[1674057903355,1.292995,20906.0,20898.0,2.78231641]
[1674057903356,0.15,20904.0,20898.0,2.78231641]
[1674057903626,0.44277866,20903.0,20898.0,2.78231641]
[1674057903911,0.478429,20902.0,20898.0,2.78231641]
[1674057904183,0.478429,20902.0,20897.0,0.02058149]
[1674057904442,0.459905,20901.0,20897.0,0.09858149]
[1674057904748,0.27516297,20896.0,20888.0,2.617731]
[1674057905019,1.25457495,20895.0,20888.0,2.139]
[1674057905303,0.92187395,20895.0,20885.0,0.02148333]
[1674057905583,0.27516297,20896.0,20888.0,0.52854806]
[1674057905853,0.27716297,20896.0,20892.0,0.02104082]
[1674057906137,0.25495777,20896.0,20893.0,1.435872]
[1674057906415,0.25495777,20896.0,20893.0,0.957248]
[1674057906706,6e-05,20900.0,20894.0,0.48270806]
[1674057906992,6e-05,20900.0,20895.0,1.435695]
[1674057907264,6e-05,20900.0,20896.0,0.3]
[1674057907528,6e-05,20900.0,20897.0,1.585599]
[1674057907796,6e-05,20900.0,20898.0,0.3]
[1674057908095,0.02,20907.0,20899.0,1.585473]
[1674057908350,0.02,20907.0,20900.0,0.3]
[1674057908858,0.02,20907.0,20902.0,1.43026]
[1674057909132,0.02,20907.0,20903.0,0.3]
[1674057909699,0.02,20907.0,20904.0,0.956749]
[1674057910134,0.02,20907.0,20900.0,0.18270806]
[1674057910135,0.02,20907.0,20900.0,0.15]
[1674057910401,0.46826456,20907.0,20900.0,0.15]
[1674057910955,0.02,20907.0,20900.0,0.15]
[1674057911693,0.02,20907.0,20900.0,0.242]
[1674057911974,0.52522063,20906.0,20900.0,0.092]
[1674057912223,0.52522063,20906.0,20893.0,0.02104082]
[1674057912224,0.15,20904.0,20893.0,0.02104082]
[1674057912506,0.8866612,20903.0,20900.0,0.085]
[1674057912769,0.311179,20902.0,20893.0,0.02104082]
[1674057913028,0.478484,20900.0,20893.0,0.02104082]
[1674057913322,0.478372,20905.0,20900.0,0.085]
[1674057913579,1.834547,20906.0,20897.0,0.478518]
[1674057913848,0.001,20902.0,20893.0,0.73466982]
[1674057914142,0.92665656,20904.0,20893.0,0.64966982]
[1674057914433,0.44826456,20903.0,20893.0,0.64966982]
[1674057914704,0.92665456,20904.0,20893.0,0.64966982]
[1674057914977,0.44826456,20903.0,20893.0,0.64966982]
[1674057915246,0.44826456,20903.0,20894.0,0.3]
[1674057915740,0.59207745,20904.0,20895.0,0.478565]
[1674057915742,0.001,20903.0,20894.0,0.778589]
[1674057916032,0.001,20903.0,20896.0,0.3]
[1674057916276,0.44755611,20904.0,20895.0,0.15]
[1674057916543,0.44755611,20905.0,20896.0,0.278555]
[1674057916813,1.3562,20906.0,20896.0,0.278555]
[1674057917102,0.001,20903.0,20897.0,0.3]
[1674057917370,0.001,20903.0,20898.0,1.585488]
[1674057917654,0.001,20903.0,20899.0,0.3]
[1674057917940,0.001,20903.0,20900.0,1.072428]
[1674057918229,0.02,20907.0,20900.0,1.072428]
[1674057918488,0.02,20907.0,20905.0,0.1155]
[1674057918800,0.44813196,20909.0,20906.0,2.034993]
[1674057918801,0.44788229,20909.0,20906.0,2.034993]
[1674057919068,0.44788229,20909.0,20908.0,0.1144]
[1674057919322,0.44788229,20909.0,20908.0,0.2644]
[1674057919815,0.44788229,20909.0,20908.0,1.37097]
[1674057920085,0.13,20911.0,20909.0,0.15]
[1674057920328,0.00380639,20916.0,20910.0,0.95648]
[1674057920599,0.00380639,20916.0,20911.0,0.3]
[1674057920867,0.00380639,20916.0,20912.0,0.956364]
[1674057921126,0.00380639,20916.0,20914.0,0.15]
[1674057921390,0.00380639,20916.0,20915.0,0.95625]
[1674057921647,0.00380639,20916.0,20915.0,1.25625]
[1674057921922,0.00380639,20916.0,20915.0,1.52495948]
[1674057922187,0.00380639,20916.0,20915.0,0.3]
[1674057922444,0.06663639,20916.0,20914.0,0.092]
[1674057922997,0.00380639,20916.0,20914.0,0.092]
[1674057923261,0.184,20913.0,20910.0,0.628218]
[1674057923730,0.184,20913.0,20911.0,0.478196]
[1674057924500,0.45016708,20920.0,20912.0,0.4155]
[1674057924839,0.003996,20920.0,20916.0,0.1155]
[1674057925030,0.003996,20920.0,20917.0,1.434225]
[1674057925289,0.003996,20920.0,20918.0,0.3]
[1674057925549,0.003996,20929.0,20921.0,0.477975]
[1674057925832,0.003996,20929.0,20926.0,0.1155]
[1674057925833,0.44755794,20929.0,20926.0,0.1155]
[1674057926100,0.003996,20929.0,20925.0,0.477885]
[1674057926354,0.003996,20929.0,20926.0,0.3]
[1674057926648,0.003996,20929.0,20924.0,0.477904]
[1674057926906,0.148996,20931.0,20925.0,0.3]
[1674057927471,0.01052097,20928.0,20925.0,0.3]
[1674057927734,0.01052097,20928.0,20919.0,0.44356194]
[1674057927735,0.01052097,20928.0,20926.0,0.008]
[1674057928005,0.90344252,20921.0,20919.0,0.478014]
[1674057928271,0.324056,20920.0,20919.0,0.478017]
[1674057928530,0.90344252,20921.0,20920.0,0.478011]
[1674057928802,0.90344252,20921.0,20919.0,0.478018]
[1674057929078,0.90344252,20921.0,20920.0,0.628011]
[1674057929521,0.89199999,20923.0,20921.0,0.15]
[1674057929749,0.89199999,20923.0,20922.0,0.95593]
[1674057929969,0.89199999,20923.0,20922.0,1.40593]
[1674057930248,0.56465131,20927.0,20923.0,0.15]
[1674057930513,0.56465131,20927.0,20924.0,1.433745]
[1674057930776,0.56465131,20927.0,20925.0,0.3]
[1674057930777,5.131e-05,20927.0,20925.0,0.3]
[1674057931034,5.131e-05,20927.0,20926.0,0.955748]
[1674057931402,5.131e-05,20927.0,20926.0,1.255748]
[1674057931571,0.06288131,20927.0,20925.0,0.1296]
[1674057932108,5.131e-05,20927.0,20925.0,0.607489]
[1674057932387,5.131e-05,20927.0,20925.0,0.607476]
[1674057932653,5.131e-05,20927.0,20925.0,0.1296]
[1674057932654,0.0513457,20927.0,20925.0,0.1296]
[1674057932946,0.321614,20926.0,20925.0,0.1296]
[1674057933241,0.32336,20926.0,20925.0,0.1296]
[1674057934052,0.0423457,20927.0,20925.0,0.1296]
[1674057934613,0.62128205,20935.0,20926.0,0.2655]
[1674057934890,0.28698301,20936.0,20928.0,0.95564]
[1674057935142,0.11736409,20936.0,20929.0,0.3]
[1674057935446,0.00428482,20936.0,20931.0,0.477757]
[1674057935721,0.00428482,20936.0,20932.0,0.883926]
[1674057936020,0.01328482,20936.0,20932.0,0.883926]
[1674057936290,0.00428482,20936.0,20932.0,0.883926]
[1674057936544,0.00428482,20936.0,20931.0,1.105507]
[1674057936545,0.00428482,20936.0,20931.0,0.45803111]
[1674057936819,0.17315905,20938.0,20934.0,0.0605]
[1674057936820,0.00335846,20938.0,20934.0,0.0605]
[1674057937079,0.009,20936.0,20934.0,0.0605]
[1674057937336,0.009,20936.0,20935.0,0.955328]
[1674057937878,0.00335846,20938.0,20935.0,0.955328]
[1674057938370,0.00421482,20936.0,20935.0,0.955328]
[1674057938631,0.01321482,20936.0,20935.0,0.955328]
[1674057938890,0.00421482,20936.0,20935.0,0.777664]
[1674057939144,0.00421482,20936.0,20934.0,0.0605]
[1674057939145,0.06704482,20936.0,20934.0,0.0605]
[1674057939663,0.302088,20935.0,20934.0,0.0605]
[1674057939954,0.15,20934.0,20927.0,0.4140519]
[1674057940189,0.322866,20933.0,20927.0,0.4140519]
[1674057940442,0.14227482,20936.0,20927.0,0.4140519]
[1674057940443,0.59289502,20936.0,20927.0,0.4140519]
[1674057941002,0.01321482,20936.0,20927.0,0.4140519]
[1674057941006,0.01321482,20936.0,20928.0,0.15]
[1674057941498,0.01321482,20936.0,20931.0,0.0989]
[1674057941746,0.01321482,20936.0,20932.0,1.433178]
[1674057941991,0.00421482,20936.0,20933.0,0.45]
[1674057942778,0.01321482,20936.0,20934.0,0.955382]
[1674057943003,0.00421482,20936.0,20934.0,0.477691]
[1674057943369,0.01321482,20936.0,20933.0,0.3]
[1674057943388,0.00421482,20936.0,20933.0,0.477705]
[1674057943442,0.01321482,20936.0,20935.0,0.477668]
[1674057943444,0.00421482,20936.0,20933.0,0.477705]
[1674057943645,0.00421482,20936.0,20932.0,0.20292029]
[1674057945287,0.00421482,20936.0,20934.0,0.1083]
[1674057945555,0.34901282,20936.0,20934.0,0.1083]
[1674057945818,0.302158,20935.0,20925.0,0.477875]
[1674057946301,0.302158,20935.0,20925.0,0.47789]
[1674057946302,0.92277778,20934.0,20925.0,0.47789]
[1674057946571,0.76681678,20933.0,20925.0,0.47789]
[1674057946833,0.76681678,20933.0,20926.0,0.477868]
[1674057946834,0.313034,20932.0,20926.0,0.477868]
[1674057947095,0.321078,20931.0,20924.0,0.477906]
[1674057947370,0.317884,20930.0,20925.0,0.477885]
[1674057947617,1.4195,20935.0,20925.0,0.477885]
[1674057947886,1.4195,20935.0,20926.0,0.18396903]
[1674057948150,0.009,20934.0,20927.0,0.477836]
[1674057948406,0.0089334,20934.0,20927.0,0.477836]
[1674057948681,1.87126906,20935.0,20927.0,0.477836]
[1674057948946,0.476362,20934.0,20927.0,0.477836]
[1674057949223,0.322354,20933.0,20927.0,0.477844]
[1674057949484,0.329825,20932.0,20924.0,0.477904]
[1674057949757,0.329825,20932.0,20923.0,0.477932]
[1674057949758,0.31794,20931.0,20923.0,0.477932]
[1674057950016,0.482932,20930.0,20923.0,0.477932]
[1674057950278,0.315723,20929.0,20922.0,0.477947]
[1674057950566,0.77883778,20928.0,20922.0,0.477947]
[1674057950850,0.4616,20927.0,20923.0,0.477935]
[1674057951100,0.321282,20926.0,20922.0,0.477947]
[1674057951577,0.323342,20925.0,20921.0,0.477976]
[1674057951578,0.15,20927.0,20921.0,0.477976]
[1674057951840,0.329921,20926.0,20922.0,0.477943]
[1674057952107,0.325585,20925.0,20921.0,0.477976]
[1674057952369,0.333317,20924.0,20919.0,0.478025]
[1674057952649,0.477908,20925.0,20917.0,0.478071]
[1674057952894,0.76558778,20924.0,20917.0,0.478079]
[1674057953159,0.335366,20923.0,20916.0,0.64816378]
[1674057953438,0.459891,20922.0,20917.0,0.478064]
[1674057953705,0.337117,20921.0,20917.0,0.478064]
[1674057954001,0.317599,20920.0,20917.0,0.478064]
[1674057954287,0.13063,20922.0,20917.0,0.478064]
[1674057954575,0.327003,20921.0,20917.0,0.478064]
[1674057954840,0.32098,20920.0,20917.0,0.478064]
[1674057955101,0.32098,20920.0,20916.0,0.64816378]
[1674057955388,0.318155,20919.0,20916.0,0.17007078]
[1674057955661,0.307263,20918.0,20916.0,0.02007078]
[1674057955953,0.58340678,20921.0,20916.0,0.02007078]
[1674057955954,0.315451,20917.0,20916.0,0.02007078]
[1674057957020,0.315451,20917.0,20916.0,0.08278078]
[1674057957306,0.15,20924.0,20916.0,0.08278078]
[1674057957569,0.009,20917.0,20916.0,0.38278078]
[1674057957831,0.009,20917.0,20916.0,1.33896378]
[1674057958132,0.13291,20921.0,20916.0,1.81706578]
[1674057958397,0.13291,20921.0,20916.0,1.27548867]
[1674057958924,0.323527,20920.0,20916.0,1.27548867]
[1674057959174,0.332406,20919.0,20916.0,0.49740767]
[1674057959454,0.325644,20918.0,20916.0,0.01930567]
[1674057959718,0.339795,20917.0,20916.0,0.01930567]
[1674057959987,0.15,20916.0,20911.0,0.478212]
[1674057960246,0.305574,20915.0,20911.0,0.478212]
[1674057960508,0.13476,20919.0,20912.0,0.478187]
[1674057960509,0.343933,20914.0,20912.0,0.478187]
[1674057961028,0.97753031,20922.0,20912.0,0.478187]
[1674057961031,0.009,20916.0,20913.0,0.03396903]
[1674057961316,0.26,20920.0,20914.0,1.434444]
[1674057961584,0.009,20915.0,20914.0,2.01367865]
[1674057961860,0.009,20915.0,20914.0,1.434444]
[1674057962189,0.009,20915.0,20914.0,2.2790155]
[1674057962455,0.009,20915.0,20914.0,1.76841303]
[1674057963005,0.26,20920.0,20914.0,1.734444]
[1674057963272,0.26,20920.0,20914.0,2.45647289]
[1674057963524,0.26,20920.0,20916.0,0.23904]
[1674057963782,0.26,20920.0,20917.0,2.3623]
[1674057964029,0.26,20920.0,20917.0,2.33384247]
[1674057964280,0.26,20920.0,20918.0,0.57154247]
[1674057964281,0.268,20920.0,20918.0,0.57154247]
[1674057964540,0.268,20920.0,20919.0,0.956068]
[1674057964837,0.26,20920.0,20919.0,1.256068]
[1674057965047,0.268,20920.0,20919.0,1.256068]
[1674057965309,0.26,20920.0,20919.0,1.256068]
[1674057965570,0.47080981,20929.0,20920.0,0.15]
[1674057965822,0.28338388,20929.0,20922.0,1.911796]
[1674057966104,0.28338388,20929.0,20923.0,0.3]
[1674057966357,0.28338388,20929.0,20924.0,1.911604]
[1674057966616,0.28338388,20929.0,20925.0,0.3]
[1674057966887,0.28338388,20929.0,20926.0,1.533607]
[1674057967163,0.28331388,20929.0,20927.0,0.3]
[1674057967446,0.28331388,20929.0,20928.0,1.433484]
[1674057967700,0.28331388,20929.0,20928.0,1.733484]
[1674057967701,0.28431388,20929.0,20928.0,1.733484]
[1674057967943,0.28331388,20929.0,20928.0,1.733484]
[1674057968199,0.28431388,20929.0,20928.0,1.733484]
[1674057968455,0.28331388,20929.0,20928.0,0.777828]
[1674057968738,0.27552375,20929.0,20928.0,0.3]
[1674057969035,0.27652375,20929.0,20928.0,0.862828]
[1674057969647,0.27652375,20929.0,20928.0,0.085]
[1674057969957,0.61553475,20929.0,20928.0,0.085]
[1674057970475,0.61553475,20929.0,20922.0,0.477958]
[1674057970476,0.339011,20929.0,20922.0,0.477958]
[1674057970759,0.91291532,20928.0,20921.0,0.477975]
[1674057971015,0.78127232,20927.0,20921.0,0.477975]
[1674057971320,0.332619,20926.0,20921.0,0.477975]
[1674057971531,0.15,20928.0,20921.0,0.477975]
[1674057971812,0.15,20928.0,20922.0,0.078]
[1674057972079,0.59908332,20930.0,20923.0,0.955861]
[1674057972345,0.001,20927.0,20923.0,0.955861]
[1674057972640,0.327094,20926.0,20924.0,0.3]
[1674057972893,0.340681,20925.0,20923.0,0.477924]
[1674057973160,0.34138,20924.0,20922.0,0.477965]
[1674057973416,0.32909,20923.0,20922.0,0.477965]
[1674057973672,0.13621,20926.0,20921.0,1.033956]
[1674057973969,1.81838332,20928.0,20921.0,0.955956]
[1674057974229,0.001,20925.0,20923.0,0.076]
[1674057974499,0.99139025,20931.0,20918.0,0.15]
[1674057974500,0.37760025,20931.0,20918.0,0.15]
[1674057974760,0.22760025,20931.0,20924.0,0.95584]
[1674057975037,0.22760025,20931.0,20925.0,0.3]
[1674057975304,0.36477025,20931.0,20926.0,0.477856]
[1674057975607,0.335061,20930.0,20927.0,0.3]
[1674057975878,0.319656,20929.0,20923.0,0.477932]
[1674057976161,0.74925732,20928.0,20923.0,0.477932]
[1674057976418,1.71827732,20927.0,20919.0,0.478022]
[1674057976752,0.91544532,20926.0,20919.0,0.478012]
[1674057977018,0.77598332,20925.0,20920.0,0.478001]
[1674057977286,0.15,20926.0,20915.0,0.64878987]
[1674057977287,1.73001632,20924.0,20916.0,0.478099]
[1674057977560,0.77658632,20923.0,20918.0,0.478053]
[1674057977889,0.32661,20922.0,20919.0,0.091]
[1674057978071,1.95146332,20925.0,20918.0,0.478053]
[1674057978328,1.95146332,20925.0,20918.0,0.478034]
[1674057978329,1.98028,20925.0,20918.0,0.478034]
[1674057978590,0.467257,20924.0,20917.0,0.478063]
[1674057978859,0.477968,20922.0,20918.0,0.091]
[1674057979143,0.331269,20921.0,20915.0,0.17066887]
[1674057979396,0.593068,20922.0,20915.0,0.17066887]
[1674057979397,0.76553709,20920.0,20915.0,0.17066887]
[1674057979665,1.437029,20919.0,20915.0,0.17066887]
[1674057979928,0.32317,20918.0,20915.0,6.887e-05]
[1674057980202,1.221184,20919.0,20915.0,6.887e-05]
[1674057980203,0.317758,20917.0,20915.0,6.887e-05]
[1674057980458,0.799482,20916.0,20915.0,6.887e-05]
[1674057980742,0.796982,20916.0,20915.0,6.887e-05]
[1674057980983,0.796982,20916.0,20915.0,0.00506887]
[1674057980984,1.511082,20916.0,20915.0,0.00506887]
[1674057981244,0.15,20915.0,20903.0,0.11401842]
[1674057981505,0.956416,20912.0,20902.0,0.59237221]
[1674057981792,0.34514,20911.0,20902.0,0.11395221]
[1674057982054,0.34514,20911.0,20900.0,0.66745083]
[1674057982055,0.44448506,20911.0,20901.0,0.59238621]
[1674057982318,0.92271206,20911.0,20901.0,0.478434]
[1674057982589,0.4440981,20910.0,20902.0,0.005]
[1674057982852,0.811827,20909.0,20902.0,0.005]
[1674057983149,0.336141,20908.0,20902.0,0.005]
[1674057983435,0.333387,20907.0,20902.0,0.005]
[1674057983701,0.326028,20906.0,20902.0,0.005]
[1674057983974,0.467503,20905.0,20900.0,0.005]
[1674057984240,0.467503,20905.0,20900.0,0.0001]
[1674057984241,0.1151,20902.0,20900.0,0.0001]
[1674057984557,0.320856,20901.0,20893.0,0.17104082]
[1674057984835,0.1151,20896.0,20893.0,0.17104082]
[1674057985097,0.350796,20895.0,20893.0,0.02104082]
[1674057985377,0.7367,20899.0,20893.0,0.02104082]
[1674057985378,0.29303709,20899.0,20893.0,0.02104082]
[1674057985670,0.4501655,20898.0,20893.0,0.02104082]
[1674057985910,0.957013,20899.0,20893.0,0.02104082]
[1674057985911,0.322824,20897.0,20893.0,0.02104082]
[1674057986171,0.44991853,20900.0,20893.0,0.02104082]
[1674057986437,0.4488415,20902.0,20893.0,0.10422067]
[1674057986692,0.15,20904.0,20893.0,0.58284167]
[1674057986693,0.44932362,20904.0,20893.0,0.58284167]
[1674057986975,0.938027,20905.0,20894.0,0.03335879]
[1674057987265,0.928047,20904.0,20893.0,0.37086188]
[1674057987520,0.45911549,20905.0,20894.0,0.928586]
[1674057987778,0.15,20906.0,20894.0,0.867886]
[1674057988039,0.92945818,20907.0,20895.0,0.25368132]
[1674057988383,0.45113418,20905.0,20895.0,0.25368132]
[1674057988642,0.47842,20903.0,20896.0,0.15]
[1674057988927,0.009,20901.0,20894.0,0.15]
[1674057989199,0.45113418,20903.0,20894.0,0.15]
[1674057989464,0.45113418,20903.0,20895.0,0.001]
[1674057989743,0.45113418,20903.0,20894.0,0.15]
[1674057990004,0.009,20903.0,20896.0,0.001]
[1674057990265,0.47836,20905.0,20894.0,0.96194379]
[1674057990266,0.478363,20905.0,20894.0,0.96194379]
[1674057990527,0.478363,20905.0,20894.0,0.451]
[1674057990528,0.009,20903.0,20894.0,0.451]
[1674057990788,0.009,20903.0,20894.0,0.001]
[1674057990789,0.795708,20902.0,20894.0,0.001]
[1674057991279,0.89940807,20901.0,20894.0,0.001]
[1674057991282,1.13863807,20901.0,20894.0,0.001]
[1674057991540,1.13863807,20901.0,20893.0,0.02104082]
[1674057991541,1.435482,20899.0,20893.0,0.02104082]
[1674057991803,0.1151,20897.0,20890.0,2.78231641]
[1674057992065,1.74546526,20896.0,20890.0,2.78231641]
[1674057992334,0.77235626,20895.0,20890.0,2.78231641]
[1674057992626,1.74071026,20894.0,20891.0,1.628e-05]
[1674057992891,0.312667,20893.0,20890.0,2.78231641]
[1674057993159,0.317886,20892.0,20890.0,2.78231641]
[1674057993436,0.478494,20899.0,20891.0,0.15]
[1674057993735,0.009,20897.0,20891.0,0.628657]
[1674057993990,0.009,20897.0,20891.0,0.18335879]
[1674057994253,0.009,20897.0,20890.0,2.78231641]
[1674057994523,0.009,20897.0,20890.0,2.77731641]
[1674057995055,0.478531,20898.0,20890.0,2.77731641]
[1674057995335,0.009,20893.0,20888.0,0.628721]
[1674057995596,0.45542519,20896.0,20890.0,0.15]
[1674057995856,0.13614,20900.0,20891.0,0.478656]
[1674057996383,0.628444,20902.0,20892.0,0.3]
[1674057996654,0.593585,20900.0,20890.0,2.97713747]
[1674057996918,0.458808,20899.0,20890.0,2.77731641]
[1674057997179,0.957106,20897.0,20890.0,2.77731641]
[1674057997738,0.478553,20897.0,20890.0,2.77731641]
[1674057998026,0.478524,20898.0,20890.0,2.77731641]
[1674057998027,0.478524,20898.0,20891.0,0.084]
[1674057998301,0.47846,20901.0,20891.0,0.628674]
[1674057998565,0.1371,20900.0,20891.0,0.628674]
[1674057998830,0.47844,20902.0,20891.0,0.628674]
[1674057999340,0.47844,20902.0,20892.0,0.3]
[1674057999341,0.13812,20900.0,20892.0,0.3]
[1674057999342,0.28812,20900.0,20892.0,0.3]
[1674057999605,0.001,20901.0,20891.0,0.928661]
[1674057999870,0.001,20901.0,20892.0,0.478634]
[1674058000126,0.001,20901.0,20893.0,0.3]
[1674058000383,0.001,20901.0,20894.0,0.145]
[1674058000657,0.001,20901.0,20895.0,0.95715]
[1674058000925,0.001,20901.0,20896.0,0.3]
[1674058001191,0.001,20902.0,20897.0,0.15]
[1674058001461,0.33889664,20909.0,20897.0,1.585578]
[1674058001728,0.15,20910.0,20898.0,0.3]
[1674058001729,0.001,20900.0,20898.0,0.3]
[1674058001998,0.001,20900.0,20899.0,1.435473]
[1674058002261,0.33922884,20909.0,20899.0,1.885473]
[1674058002527,0.479269,20909.0,20900.0,0.3]
[1674058002795,0.45284933,20908.0,20897.0,0.083]
[1674058003074,0.29999999,20899.0,20897.0,0.47853]
[1674058003616,0.29999999,20899.0,20896.0,0.62855]
[1674058003617,0.29999999,20899.0,20896.0,0.15]
[1674058003882,0.29999999,20899.0,20897.0,0.61542]
[1674058004156,0.29999999,20899.0,20898.0,0.15]